bitfinex-derivatives/quotes_SOLF0:USTF0_20241107
["timestamp","ask_amount","ask_price","bid_price","bid_amount"]
[1731005655115,2.5308,197.4,197.32,1.5317]
[1731005655617,2.5307,197.4,197.33,2.5315]
[1731005656519,1.5307,197.4,197.33,2.5315]
[1731005656720,12.99984636,197.41,197.31,13.99984636]
[1731005656917,12.99984636,197.41,197.36,2.5312]
[1731005657115,12.99984636,197.41,197.31,13.99984636]
[1731005657718,18.79024636,197.44,197.34,13.99984636]
[1731005657911,18.79024636,197.44,197.37,2.531]
[1731005658116,15.25024636,197.44,197.37,2.531]
[1731005658315,14.25024636,197.44,197.37,2.531]
[1731005658515,14.25024636,197.44,197.38,1.531]
[1731005658916,1.2848,197.45,197.38,1.531]
[1731005659221,13.99984636,197.47,197.39,2.5307]
[1731005659622,16.52964636,197.47,197.39,2.5307]
[1731005660011,15.52964636,197.47,197.39,2.5307]
[1731005660320,1.285,197.51,197.42,2.5303]
[1731005660517,1.285,197.51,197.39,12.99984636]
[1731005661420,2.5296,197.49,197.39,12.99984636]
[1731005661825,12.99984636,197.49,197.37,13.99984636]
[1731005662025,2.5298,197.47,197.39,2.5308]
[1731005662324,2.5298,197.47,197.39,1.5308]
[1731005662513,12.99984636,197.49,197.37,3.54]
[1731005662718,2.5303,197.43,197.37,2.5311]
[1731005662921,13.99984636,197.46,197.37,2.5311]
[1731005663118,2.5301,197.45,197.39,2.5308]
[1731005663319,2.5301,197.45,197.36,13.99984636]
[1731005663719,2.5301,197.45,197.38,2.5309]
[1731005664118,1.5301,197.45,197.38,2.5309]
[1731005664518,2.5304,197.43,197.36,15.53094636]
[1731005665122,13.99984636,197.46,197.36,12.99984636]
[1731005665322,12.99984636,197.43,197.33,3.54]
[1731005665725,2.531,197.38,197.3,1.175]
[1731005666024,2.531,197.38,197.29,18.77584636]
[1731005666223,2.531,197.38,197.29,15.23584636]
[1731005666425,2.531,197.38,197.31,2.5317]
[1731005666928,1.531,197.38,197.31,2.5317]
[1731005667228,1.531,197.38,197.31,1.5317]
[1731005667923,15.23614636,197.41,197.31,1.5317]
[1731005668329,15.23614636,197.41,197.29,14.23584636]
[1731005669227,12.99984636,197.38,197.27,13.99984636]
[1731005669438,13.99984636,197.36,197.25,1.2746]
[1731005669637,2.5315,197.34,197.25,2.8071]
[1731005670133,2.5317,197.33,197.24,2.5327]
[1731005670332,13.99984636,197.36,197.24,13.99984636]
[1731005670333,2.54,197.35,197.24,13.99984636]
[1731005670734,2.54,197.35,197.24,12.99984636]
[1731005671542,13.99984636,197.38,197.27,13.99984636]
[1731005671742,17.53984636,197.4,197.29,13.99984636]
[1731005671943,17.53984636,197.4,197.23,2.54]
[1731005672143,2.5313,197.36,197.28,16.53204636]
[1731005672543,17.53984636,197.4,197.28,13.99984636]
[1731005673045,2.531,197.38,197.31,13.99984636]
[1731005673251,2.531,197.38,197.31,12.99984636]
[1731005673945,2.54,197.4,197.31,12.99984636]
[1731005674136,1.54,197.4,197.31,12.99984636]
[1731005674338,1.2363,197.41,197.31,12.99984636]
[1731005674543,1.2363,197.41,197.31,11.99984636]
[1731005675143,13.99984636,197.4,197.28,13.99984636]
[1731005675540,1.2363,197.41,197.28,13.99984636]
[1731005675541,13.99984636,197.39,197.28,13.99984636]
[1731005675951,13.99984636,197.39,197.26,13.99984636]
[1731005676456,2.5317,197.33,197.26,16.53224636]
[1731005676747,1.5317,197.33,197.26,13.99984636]
[1731005677142,1.5317,197.33,197.24,0.2417]
[1731005677337,1.5317,197.33,197.25,13.99984636]
[1731005677744,1.5317,197.33,197.26,2.5324]
[1731005678250,13.99984636,197.39,197.25,13.99984636]
[1731005678439,13.99984636,197.36,197.25,12.99984636]
[1731005679443,2.5318,197.32,197.26,2.5324]
[1731005679649,2.5318,197.32,197.25,11.99984636]
[1731005679846,16.47984636,197.36,197.25,11.99984636]
[1731005680049,2.5321,197.3,197.23,2.5329]
[1731005680247,13.99984636,197.33,197.23,2.5329]
[1731005680439,13.99984636,197.33,197.2,13.99984636]
[1731005680440,2.3967,197.32,197.2,13.99984636]
[1731005680750,12.99984636,197.31,197.2,13.99984636]
[1731005680946,12.99984636,197.31,197.2,12.99984636]
[1731005681151,2.5326,197.26,197.2,15.53304636]
[1731005681750,1.5326,197.26,197.2,15.53304636]
[1731005681949,2.5324,197.27,197.2,12.99984636]
[1731005682146,5.9619166,197.36,197.16,3.48]
[1731005682147,3.48,197.36,197.22,12.99984636]
[1731005682455,2.532,197.3,197.25,2.5326]
[1731005682648,2.5126,197.35,197.25,13.99984636]
[1731005682854,2.5126,197.35,197.19,1.2412]
[1731005683150,2.5126,197.35,197.26,2.5325]
[1731005683352,2.5126,197.35,197.26,13.99984636]
[1731005683548,1.273,197.38,197.29,13.99984636]
[1731005683743,2.5311,197.37,197.31,2.5318]
[1731005683951,1.273,197.38,197.31,2.5318]
[1731005684354,1.273,197.38,197.29,13.99984636]
[1731005684553,0.273,197.38,197.32,2.5317]
[1731005684748,0.273,197.38,197.32,1.5317]
[1731005684953,2.5311,197.37,197.32,1.5317]
[1731005685850,1.5311,197.37,197.32,1.5317]
[1731005686048,1.5311,197.37,197.29,13.99984636]
[1731005686357,13.99984636,197.4,197.29,13.99984636]
[1731005686559,16.35574636,197.42,197.29,13.99984636]
[1731005686859,16.35574636,197.42,197.32,2.5316]
[1731005687047,15.35574636,197.42,197.32,2.5316]
[1731005687362,2.531,197.38,197.32,1.5316]
[1731005687562,13.99984636,197.4,197.31,2.5318]
[1731005687859,2.531,197.38,197.31,2.5318]
[1731005688155,2.531,197.38,197.29,1.1953]
[1731005688156,1.531,197.38,197.29,1.1953]
[1731005688558,1.531,197.38,197.29,0.1953]
[1731005688754,2.5324,197.28,197.1,2.56189238]
[1731005689053,13.99984636,197.29,197.17,13.99984636]
[1731005689249,13.99984636,197.29,197.17,17.47984636]
[1731005689552,1.5324,197.27,197.21,2.5331]
[1731005689753,1.5324,197.27,197.21,1.5331]
[1731005690155,22.37477466,197.27,197.12,3.48]
[1731005690661,2.5326,197.25,197.17,2.5336]
[1731005691052,2.5326,197.25,197.17,1.5336]
[1731005692059,1.5326,197.25,197.17,1.5336]
[1731005692357,2.5325,197.26,197.17,1.5336]
[1731005692662,22.37477466,197.3,197.17,1.5336]
[1731005692849,22.37477466,197.3,197.14,22.37477466]
[1731005693458,2.5327,197.24,197.15,2.5338]
[1731005693655,2.5327,197.24,197.15,6.0138]
[1731005694163,2.5327,197.24,197.16,2.5337]
[1731005694347,2.5326,197.25,197.15,3.48]
[1731005694659,21.37477466,197.3,197.15,3.48]
[1731005694956,2.5327,197.25,197.18,2.5334]
[1731005695155,21.37477466,197.3,197.15,2.48]
[1731005695562,21.37477466,197.3,197.18,2.5335]
[1731005695761,20.37477466,197.3,197.18,2.5335]
[1731005696058,20.37477466,197.3,197.15,1.48]
[1731005696461,2.533,197.22,197.15,4.0139]
[1731005696759,22.37477466,197.23,197.1,22.37477466]
[1731005696961,2.5343,197.12,197.05,2.5352]
[1731005697156,22.37477466,197.17,197.01,26.08047466]
[1731005697361,22.37477466,197.17,196.96,39.05809196]
[1731005697362,22.37477466,197.14,196.96,24.93286662]
[1731005697561,22.37477466,197.09,196.83,36.5]
[1731005697862,7.1186,197.08,196.92,21.37477466]
[1731005698159,2.5352,197.06,196.95,2.5365]
[1731005698362,2.5352,197.06,196.92,21.37477466]
[1731005698865,22.37477466,197.05,196.92,21.37477466]
[1731005699068,2.5357,197.02,196.92,21.37477466]
[1731005699261,25.87477466,197.02,196.87,22.37477466]
[1731005699564,2.5358,197.0,196.87,22.37477466]
[1731005699870,25.87477466,197.02,196.87,22.37477466]
[1731005700065,25.22477466,197.02,196.87,22.37477466]
[1731005700469,22.37477466,197.05,196.9,22.37477466]
[1731005701763,22.37477466,197.05,196.86,5.98304039]
[1731005701963,22.37477466,197.05,196.89,22.37477466]
[1731005702366,22.37477466,197.05,196.86,5.98304039]
[1731005702367,22.37477466,197.05,196.95,2.5364]
[1731005702566,22.37477466,197.05,196.93,3.5]
[1731005702767,7.1386,197.08,196.93,3.5]
[1731005703371,6.1734,197.08,196.98,2.5361]
[1731005703570,3.6386,197.08,196.98,2.5361]
[1731005703871,3.6386,197.08,196.93,3.5]
[1731005704072,6.1734,197.08,196.99,2.5359]
[1731005704468,22.37477466,197.12,196.96,22.37477466]
[1731005704779,25.87477466,197.12,197.01,2.5357]
[1731005705492,2.5346,197.1,197.01,2.5357]
[1731005705776,2.5346,197.1,197.03,2.5354]
[1731005706076,25.87477466,197.12,197.03,2.5354]
[1731005706767,2.5346,197.1,196.99,3.5]
[1731005707168,25.87477466,197.12,196.99,3.5]
[1731005707370,2.5344,197.11,197.03,2.5354]
[1731005708777,2.5344,197.11,196.99,3.5]
[1731005708778,22.37477466,197.12,196.99,3.5]
[1731005708990,22.37477466,197.09,196.97,2.4946]
[1731005709276,22.37477466,197.06,196.91,3.48]
[1731005709484,22.37477466,197.03,196.93,2.5366]
[1731005709780,1.1707,197.02,196.89,25.85477466]
[1731005709984,2.5357,197.01,196.89,25.85477466]
[1731005710278,2.5357,197.01,196.89,3.48]
[1731005710477,1.1707,197.02,196.93,2.5366]
[1731005710674,2.5358,197.0,196.93,2.5366]
[1731005711581,22.37477466,197.03,196.9,22.37477466]
[1731005711883,1.2881,197.04,196.9,22.37477466]
[1731005712275,4.7724,197.05,196.9,22.37477466]
[1731005712772,2.5357,197.01,196.9,22.37477466]
[1731005712977,22.37477466,197.03,196.87,22.37477466]
[1731005713275,22.37477466,197.03,196.87,23.59407466]
[1731005713474,2.536,196.99,196.91,2.537]
[1731005713672,22.37477466,197.03,196.87,1.2193]
[1731005714176,22.37477466,197.0,196.91,2.537]
[1731005714583,22.37477466,197.0,196.87,1.2193]
[1731005714886,2.5361,196.98,196.86,3.5]
[1731005715177,22.37477466,197.0,196.86,4.7373]
[1731005715379,2.5365,196.96,196.88,2.5373]
[1731005715975,2.5364,196.96,196.88,2.5373]
[1731005716177,2.5364,196.96,196.86,4.7373]
[1731005716678,2.5366,196.94,196.87,2.5374]
[1731005716882,22.37477466,196.97,196.86,3.5]
[1731005717977,22.11396502,196.97,196.86,3.5]
[1731005718181,2.5367,196.93,196.82,3.5]
[1731005718576,2.5373,196.89,196.81,2.5382]
[1731005719078,22.37477466,196.9,196.78,2.59686807]
[1731005719279,3.7291,196.92,196.84,2.5378]
[1731005719477,1.1921,196.92,196.78,24.85741909]
[1731005719875,2.537,196.91,196.82,2.5381]
[1731005720075,2.537,196.91,196.8,3.5]
[1731005720478,1.1921,196.92,196.8,3.5]
[1731005720680,1.1921,196.92,196.85,2.5377]
[1731005720884,1.1921,196.92,196.77,25.87477466]
[1731005721182,2.537,196.91,196.77,3.5]
[1731005721375,16.54384835,196.91,196.8,14.00684835]
[1731005721886,16.54384835,196.91,196.83,2.538]
[1731005722185,2.5371,196.9,196.83,2.538]
[1731005722388,14.00684835,196.85,196.79,2.5384]
[1731005722584,14.00684835,196.85,196.76,1.2296]
[1731005722781,14.00684835,196.88,196.76,15.23644835]
[1731005722983,14.00684835,196.88,196.76,1.2296]
[1731005723182,16.54424835,196.88,196.76,15.23644835]
[1731005723383,14.00684835,196.88,196.76,15.23644835]
[1731005723582,14.00684835,196.88,196.81,2.5383]
[1731005723890,16.54424835,196.88,196.76,15.23644835]
[1731005724079,14.00684835,196.88,196.76,15.23644835]
[1731005724481,18.73185652,197.07,196.76,15.23644835]
[1731005724482,2.4791,196.97,196.84,14.00684835]
[1731005724690,14.00684835,196.95,196.84,14.00684835]
[1731005725586,14.00684835,196.95,196.87,2.5375]
[1731005725788,14.00684835,196.95,196.84,14.00684835]
[1731005726590,2.5365,196.96,196.84,14.00684835]
[1731005726788,14.00684835,196.95,196.84,14.00684835]
[1731005727189,14.00684835,196.95,196.83,3.5]
[1731005727484,22.40708988,196.95,196.83,3.5]
[1731005727678,22.40708988,196.95,196.87,2.5374]
[1731005727883,22.40708988,196.95,196.83,3.5]
[1731005728388,22.40708988,196.95,196.89,2.5372]
[1731005728590,22.40708988,196.95,196.83,3.5]
[1731005729091,24.94358988,196.95,196.83,3.5]
[1731005729279,22.40708988,196.95,196.9,2.537]
[1731005729483,2.5125,196.97,196.83,3.5]
[1731005730385,1.2282,196.97,196.83,3.5]
[1731005730583,1.2282,196.97,196.91,2.537]
[1731005732793,1.2282,196.97,196.92,2.5368]
[1731005734389,1.2282,196.97,196.84,1.2095]
[1731005734592,18.73185652,197.04,196.9,22.40708988]
[1731005735096,24.94268988,197.02,196.91,3.5]
[1731005735386,22.40708988,197.02,196.91,3.5]
[1731005735591,22.40708988,197.02,196.96,2.5363]
[1731005735793,22.40708988,197.02,196.91,3.5]
[1731005735986,22.40708988,197.05,196.91,3.5]
[1731005736185,2.5353,197.04,196.91,3.5]
[1731005736386,50.50487466,197.08,196.93,22.40708988]
[1731005736591,28.09778478,197.08,196.93,22.40708988]
[1731005736782,28.09778478,197.08,196.94,1.2238]
[1731005737192,2.5351,197.06,196.98,2.5361]
[1731005737390,22.40708988,197.05,196.94,1.2238]
[1731005738789,22.40708988,197.05,197.0,2.5358]
[1731005739291,28.09778478,197.08,197.05,2.5351]
[1731005739496,28.09778478,197.08,196.97,3.48]
[1731005739997,28.09778478,197.08,197.04,2.5353]
[1731005740298,28.09778478,197.08,196.97,3.48]
[1731005742097,30.63258478,197.08,197.01,2.5356]
[1731005742290,28.09778478,197.08,196.97,3.48]
[1731005742496,2.535,197.07,197.01,2.5357]
[1731005742696,28.09778478,197.08,197.01,2.5357]
[1731005742897,28.09778478,197.08,196.97,3.48]
[1731005743397,28.09778478,197.08,197.02,2.5354]
[1731005744402,28.09778478,197.08,196.97,3.48]
[1731005744594,1.2315,197.09,196.97,3.48]
[1731005744595,1.2315,197.09,197.03,2.5353]
[1731005744795,18.71505414,197.16,196.98,22.40708988]
[1731005744997,22.40708988,197.14,197.05,2.5351]
[1731005745597,2.5343,197.12,197.06,2.535]
[1731005747091,2.5345,197.11,197.05,2.5352]
[1731005747295,22.40708988,197.11,197.05,2.5352]
[1731005747499,13.99651637,197.09,197.05,2.5352]
[1731005748500,13.99651637,197.09,197.0,3.48]
[1731005748796,13.99651637,197.15,197.02,13.99651637]
[1731005749303,13.99651637,197.15,197.09,2.5346]
[1731005749695,16.53041637,197.15,197.09,2.5346]
[1731005750503,16.53041637,197.15,197.1,2.5345]
[1731005750900,13.99651637,197.15,197.11,2.5344]
[1731005751104,13.99651637,197.15,197.04,13.99651637]
[1731005751707,1.2865,197.16,197.11,2.5344]
[1731005751904,1.2865,197.16,197.07,13.99651637]
[1731005752208,1.2526,197.17,197.13,2.534]
[1731005752403,1.2526,197.17,197.09,13.99651637]
[1731005753108,1.2526,197.17,197.13,2.534]
[1731005753412,1.2526,197.17,197.09,13.99651637]
[1731005753601,1.2526,197.17,197.09,17.47651637]
[1731005754009,1.2108,197.19,197.09,17.47651637]
[1731005755007,13.99651637,197.18,197.09,3.48]
[1731005755197,15.20531637,197.18,197.09,3.48]
[1731005755701,2.5337,197.17,197.12,2.5343]
[1731005755901,15.20531637,197.18,197.12,2.5343]
[1731005756101,1.2088,197.18,197.12,2.5343]
[1731005756305,1.2108,197.19,197.13,2.5341]
[1731005756508,1.203,197.22,197.11,13.99651637]
[1731005757405,2.5333,197.2,197.15,2.5339]
[1731005757705,16.52981637,197.2,197.09,17.47651637]
[1731005758204,13.99651637,197.2,197.13,2.5341]
[1731005758503,13.99651637,197.17,197.09,3.48]
[1731005758810,16.53031637,197.17,197.11,2.5344]
[1731005759306,13.99651637,197.17,197.09,3.48]
[1731005759605,2.5338,197.16,197.09,3.48]
[1731005760109,13.99651637,197.17,197.09,3.48]
[1731005760306,2.4684,197.19,197.09,3.48]
[1731005760508,2.5337,197.17,197.1,13.99651637]
[1731005760805,2.5337,197.17,197.09,3.48]
[1731005761309,2.5336,197.17,197.09,3.48]
[1731005761806,2.5336,197.17,197.11,2.5344]
[1731005763004,2.5338,197.16,197.11,2.5344]
[1731005763504,2.5337,197.17,197.11,2.5344]
[1731005764912,2.5337,197.17,197.12,2.5343]
[1731005765710,2.5338,197.16,197.08,3.48]
[1731005766208,2.5338,197.16,197.1,2.5344]
[1731005766606,2.5338,197.16,197.08,3.48]
[1731005766804,2.5338,197.16,197.11,2.5344]
[1731005767109,2.5335,197.18,197.1,13.99651637]
[1731005767502,2.5335,197.18,197.12,2.5343]
[1731005768908,1.203,197.22,197.1,13.99651637]
[1731005769210,1.203,197.22,197.08,3.48]
[1731005769211,13.99651637,197.19,197.08,3.48]
[1731005769605,2.5337,197.17,197.11,2.5344]
[1731005769811,2.5337,197.17,197.08,3.48]
[1731005770315,2.5337,197.17,197.11,2.5343]
[1731005770505,2.5335,197.18,197.07,13.99651637]
[1731005770704,13.99651637,197.19,197.07,13.99651637]
[1731005771808,8.29671479,197.22,197.07,13.99651637]
[1731005772111,13.99651637,197.21,197.09,13.99651637]
[1731005772309,2.5334,197.19,197.13,2.5341]
[1731005772507,13.99651637,197.21,197.11,13.99651637]
[1731005772999,13.99651637,197.21,197.15,2.5339]
[1731005773702,2.5333,197.2,197.15,2.5339]
[1731005774506,2.5333,197.2,197.04,5.0705]
[1731005774507,2.5334,197.19,197.13,2.5341]
[1731005776008,2.5337,197.17,197.11,2.5344]
[1731005776214,2.5337,197.17,197.09,3.48]
[1731005776508,2.5338,197.16,197.11,2.5344]
[1731005779699,13.99651637,197.16,197.07,3.48]
[1731005779900,32.71157051,197.16,197.07,3.48]
[1731005780100,13.99651637,197.16,197.07,3.48]
[1731005780512,13.99651637,197.16,197.11,2.5344]
[1731005780706,18.71505414,197.18,197.07,3.48]
[1731005780906,2.5335,197.18,197.1,2.5345]
[1731005781211,2.5335,197.18,197.09,13.99651637]
[1731005782113,2.5336,197.17,197.1,2.5345]
[1731005783708,15.19951637,197.22,197.09,13.99651637]
[1731005783915,2.5335,197.19,197.12,2.5342]
[1731005784513,2.5332,197.21,197.13,2.5341]
[1731005784714,15.19951637,197.22,197.13,2.5341]
[1731005785021,2.5334,197.19,197.12,2.5342]
[1731005785517,15.19951637,197.22,197.12,2.5342]
[1731005786717,2.5335,197.19,197.1,2.51410167]
[1731005787522,2.5334,197.19,197.13,2.5341]
[1731005787915,13.99651637,197.23,197.13,2.5341]
[1731005788725,2.5335,197.19,197.13,2.5341]
[1731005789413,13.99651637,197.23,197.12,13.99651637]
[1731005790121,2.5335,197.19,197.13,2.5341]
[1731005790311,18.71505414,197.22,197.12,13.99651637]
[1731005790511,18.71505414,197.21,197.12,13.99651637]
[1731005790715,18.71505414,197.22,197.12,13.99651637]
[1731005790917,2.5333,197.2,197.14,2.5339]
[1731005793425,2.5333,197.2,197.16,8.95319239]
[1731005794127,2.5335,197.19,197.16,8.95319239]
[1731005797315,2.5335,197.19,197.14,2.534]
[1731005797515,2.5335,197.19,197.17,8.95319239]
[1731005797822,2.5333,197.2,197.17,8.95319239]
[1731005798023,2.5333,197.2,197.14,2.534]
[1731005798024,8.95319239,197.22,197.14,2.534]
[1731005798224,8.95319239,197.22,197.16,8.95319239]
[1731005799720,2.5334,197.2,197.16,8.95319239]
[1731005800022,8.95319239,197.22,197.16,8.95319239]
[1731005800419,8.95319239,197.22,197.11,3.6967]
[1731005800620,8.95319239,197.2,197.12,8.95319239]
[1731005801526,2.5335,197.18,197.14,8.95319239]
[1731005801724,8.95319239,197.21,197.14,8.95319239]
[1731005802326,2.5333,197.2,197.14,11.48709239]
[1731005802527,13.73504188,197.22,197.16,8.95319239]
[1731005802729,2.5333,197.2,197.16,8.95319239]
[1731005803218,8.95319239,197.22,197.16,8.95319239]
[1731005803415,2.5334,197.19,197.16,8.95319239]
[1731005803822,8.95319239,197.21,197.13,8.95319239]
[1731005804122,2.5336,197.18,197.13,11.48729239]
[1731005804322,2.5336,197.18,197.13,8.95319239]
[1731005805017,8.95319239,197.19,197.13,8.95319239]
[1731005805324,2.5337,197.17,197.13,8.95319239]
[1731005805824,2.534,197.15,197.08,3.48]
[1731005806025,2.534,197.15,197.09,8.95319239]
[1731005806422,2.534,197.15,197.11,8.95319239]
[1731005806615,2.5342,197.13,197.08,3.48]
[1731005806816,2.5342,197.13,197.08,12.43319239]
[1731005807020,11.48739239,197.13,197.08,8.95319239]
[1731005807528,11.48719239,197.15,197.08,8.95319239]
[1731005807723,8.95319239,197.15,197.08,8.95319239]
[1731005808320,2.534,197.14,197.08,8.95319239]
[1731005808527,11.48719239,197.14,197.08,8.95319239]
[1731005809126,2.5343,197.12,197.05,2.5352]
[1731005809328,6.42650602,197.12,197.07,3.89220602]
[1731005810331,3.89220602,197.11,197.02,3.6606]
[1731005810628,6.42690602,197.09,197.03,3.89220602]
[1731005810828,3.89220602,197.07,197.0,2.59957734]
[1731005811131,3.89220602,197.07,197.02,3.89220602]
[1731005812625,2.5347,197.09,196.99,3.48]
[1731005812626,3.89220602,197.05,196.99,2.5359]
[1731005812825,3.89220602,197.04,196.98,3.48]
[1731005813026,3.89220602,197.06,196.99,3.89220602]
[1731005813529,6.42740602,197.06,196.99,3.89220602]
[1731005814127,3.89220602,197.02,196.89,2.50929779]
[1731005814332,3.89220602,197.02,196.96,3.89220602]
[1731005815123,2.5357,197.01,196.96,3.89220602]
[1731005815325,3.89220602,197.0,196.95,3.89220602]
[1731005815726,2.5356,197.02,196.96,2.5363]
[1731005815935,3.89220602,196.98,196.91,2.39]
[1731005816326,3.48,197.04,196.97,3.89220602]
[1731005816638,3.89220602,197.03,196.97,3.89220602]
[1731005816830,2.5356,197.02,196.97,3.89220602]
[1731005817022,3.89220602,197.0,196.95,3.89220602]
[1731005817435,3.89220602,196.99,196.93,2.5367]
[1731005817626,3.89220602,196.99,196.92,3.89220602]
[1731005818026,3.89220602,196.97,196.91,6.28220602]
[1731005818530,3.89220602,196.95,196.91,1.1977]
[1731005818730,3.89220602,196.95,196.88,3.48]
[1731005818932,3.89220602,196.93,196.87,2.47935714]
[1731005819241,3.89220602,196.93,196.88,2.5373]
[1731005820432,3.89220602,196.89,196.83,7.143]
[1731005820736,3.89220602,196.89,196.83,11.03520602]
[1731005821130,3.89220602,196.91,196.85,3.89220602]
[1731005821832,3.89220602,196.92,196.87,3.89220602]
[1731005822338,3.89220602,196.91,196.86,2.5376]
[1731005822528,3.89220602,196.91,196.83,3.48]
[1731005822732,3.89220602,196.89,196.85,3.89220602]
[1731005822929,3.89220602,196.89,196.83,3.48]
[1731005823537,3.7879,196.97,196.83,3.48]
[1731005823538,3.89220602,196.87,196.83,3.48]
[1731005823726,3.89220602,196.87,196.81,3.89220602]
[1731005824035,3.89220602,196.87,196.8,6.43060602]
[1731005824239,3.89220602,196.85,196.78,7.25981972]
[1731005824429,3.89220602,196.85,196.78,11.15202574]
[1731005824741,3.89220602,196.85,196.78,9.87782574]
[1731005825135,3.89220602,196.85,196.8,3.89220602]
[1731005825333,2.5376,196.86,196.78,8.52421972]
[1731005826745,2.5376,196.86,196.79,2.5385]
[1731005827333,1.2213,196.88,196.8,6.09180947]
[1731005827533,1.2213,196.88,196.82,2.5381]
[1731005828241,3.7588,196.88,196.78,5.98561972]
[1731005828833,3.7588,196.88,196.81,2.5381]
[1731005829142,1.2213,196.88,196.78,5.98561972]
[1731005829336,1.2213,196.88,196.8,2.5384]
[1731005829531,2.537,196.91,196.78,5.98561972]
[1731005830034,1.2744,196.97,196.79,1.2789]
[1731005830242,2.5369,196.92,196.79,3.7771]
[1731005831033,2.5369,196.92,196.85,2.5377]
[1731005831340,2.5367,196.94,196.79,3.7771]
[1731005831740,3.46,196.95,196.88,2.5373]
[1731005831936,1.2744,196.97,196.88,2.5373]
[1731005832239,1.2744,196.97,196.85,3.46]
[1731005832643,1.2619,196.98,196.92,2.5368]
[1731005832841,0.18085,196.99,196.92,2.5368]
[1731005833044,0.18085,196.99,196.89,2.5579031]
[1731005833236,0.18085,196.99,196.94,2.5365]
[1731005833644,0.18085,196.99,196.91,3.46]
[1731005834138,2.5361,196.98,196.91,3.46]
[1731005834338,0.18085,196.99,196.91,3.46]
[1731005834645,2.5364,196.96,196.91,3.46]
[1731005835139,0.18085,196.99,196.91,3.46]
[1731005835742,2.5362,196.97,196.91,5.997]
[1731005836044,3.7569,196.98,196.86,3.46]
[1731005836236,2.5366,196.95,196.89,2.5372]
[1731005836439,3.7569,196.98,196.86,3.46]
[1731005836936,2.5365,196.95,196.89,2.5372]
[1731005837332,3.7569,196.98,196.86,3.46]
[1731005838150,2.5367,196.93,196.88,2.5373]
[1731005838339,3.7569,196.98,196.86,3.46]
[1731005838945,3.7569,196.98,196.81,3.46]
[1731005839140,2.5369,196.92,196.86,2.5375]
[1731005839645,3.7569,196.98,196.91,2.5369]
[1731005839849,3.7569,196.98,196.87,3.46]
[1731005840042,3.46,197.05,196.87,3.46]
[1731005840243,2.5361,196.98,196.87,3.46]
[1731005840451,6.2726003,197.04,196.87,3.46]
[1731005840745,2.5364,196.96,196.87,5.9974]
[1731005840942,3.46,196.99,196.82,3.46]
[1731005841147,1.2861,196.95,196.82,3.46]
[1731005841346,2.4395,196.94,196.79,48.76715747]
[1731005841543,3.46,196.93,196.79,45.30715747]
[1731005841844,3.46,196.93,196.79,48.76715747]
[1731005842258,3.46,196.93,196.85,2.5376]
[1731005842450,3.46,196.93,196.79,48.76715747]
[1731005842953,2.537,196.91,196.82,2.538]
[1731005843351,2.537,196.91,196.79,45.30715747]
[1731005843550,2.537,196.91,196.83,2.5379]
[1731005844153,2.5371,196.9,196.82,2.5381]
[1731005844555,3.46,196.93,196.79,42.80895747]
[1731005844760,3.46,196.93,196.85,2.5377]
[1731005845251,3.46,196.93,196.79,42.80895747]
[1731005845452,2.537,196.92,196.83,2.5379]
[1731005845859,2.537,196.92,196.79,41.53005747]
[1731005845860,2.5374,196.89,196.81,2.5381]
[1731005846051,3.46,196.93,196.81,2.5381]
[1731005846455,3.46,196.93,196.82,2.5381]
[1731005847058,3.46,196.93,196.73,3.569]
[1731005847255,3.46,196.93,196.73,4.94218442]
[1731005847459,2.5375,196.87,196.73,2.3595]
[1731005847757,5.9975,196.87,196.77,2.5388]
[1731005848054,3.46,196.87,196.73,2.3595]
[1731005848259,5.9975,196.87,196.73,2.3595]
[1731005848455,3.46,196.87,196.81,2.5382]
[1731005848654,3.46,196.87,196.74,3.71066678]
[1731005848857,3.46,196.87,196.82,2.5381]